bitfinex/quotes_BTCUSD_20250617
["timestamp","ask_amount","ask_price","bid_price","bid_amount"]
[1750128192363,0.001,106970.0,106960.0,0.70621434]
[1750128192635,0.001,106970.0,106960.0,0.72271434]
[1750128194065,0.001,106970.0,106960.0,0.93139138]
[1750128195703,0.001,106970.0,106960.0,0.72271434]
[1750128195904,0.001,106970.0,106960.0,0.93139138]
[1750128197098,0.001,106970.0,106960.0,0.72271434]
[1750128197723,0.001,106970.0,106960.0,0.70621434]
[1750128198345,0.001,106970.0,106960.0,1.04621434]
[1750128199817,0.001,106970.0,106960.0,1.02991434]
[1750128200449,0.0324,106970.0,106960.0,1.02963434]
[1750128200672,0.04174762,106970.0,106960.0,1.02963434]
[1750128200885,0.001,106970.0,106960.0,1.02963434]
[1750128201093,0.001,106970.0,106960.0,1.23735363]
[1750128201295,0.001,106970.0,106960.0,1.02963434]
[1750128201502,0.001,106970.0,106960.0,1.23735363]
[1750128202547,0.001,106970.0,106960.0,1.02963434]
[1750128202764,0.0174,106970.0,106960.0,1.23735363]
[1750128204246,0.02674762,106970.0,106960.0,1.23735363]
[1750128204457,0.04294762,106970.0,106960.0,1.02963434]
[1750128204652,0.0336,106970.0,106960.0,1.02963434]
[1750128208075,0.0336,106970.0,106960.0,1.23735363]
[1750128209582,0.001,106970.0,106960.0,1.23735363]
[1750128214092,0.001,106970.0,106960.0,1.25245363]
[1750128214301,0.001,106970.0,106960.0,1.26845363]
[1750128214935,0.001,106970.0,106960.0,1.06073434]
[1750128215124,0.001,106970.0,106960.0,1.26845363]
[1750128218015,0.001,106970.0,106960.0,1.47617292]
[1750128218439,0.001,106970.0,106960.0,1.06073434]
[1750128218641,0.001,106970.0,106960.0,1.47617292]
[1750128218893,0.03047212,106980.0,106970.0,0.57501248]
[1750128219093,0.03047212,106980.0,106970.0,1.03713353]
[1750128219434,0.03047212,106980.0,106970.0,1.06953353]
[1750128221450,0.03147212,106980.0,106970.0,1.06953353]
[1750128223203,0.03147212,106980.0,106970.0,1.47725282]
[1750128223587,0.03147212,106980.0,106970.0,1.56602239]
[1750128223756,0.03147212,106980.0,106970.0,1.71314239]
[1750128224129,0.03047212,106980.0,106970.0,1.71314239]
[1750128224265,0.03047212,106980.0,106970.0,1.76414239]
[1750128224468,0.03047212,106980.0,106970.0,1.76614239]
[1750128224930,0.03047212,106980.0,106970.0,1.55726329]
[1750128225490,0.01513746,106980.0,106970.0,1.81482277]
[1750128225913,0.01513746,106980.0,106970.0,1.65666277]
[1750128226121,0.01513746,106980.0,106970.0,1.58443405]
[1750128226429,0.01513746,106980.0,106970.0,1.35871457]
[1750128226626,0.01513746,106980.0,106970.0,1.42975457]
[1750128226855,0.01513746,106980.0,106970.0,1.57671457]
[1750128227106,0.01813746,106980.0,106970.0,1.62671457]
[1750128227329,0.02213746,106980.0,106970.0,1.62671457]
[1750128227784,0.01913746,106980.0,106970.0,1.62671457]
[1750128228010,0.01513746,106980.0,106970.0,1.62971457]
[1750128229165,0.01513746,106980.0,106970.0,1.92361457]
[1750128230036,0.01513746,106980.0,106970.0,1.62865457]
[1750128230535,0.01513746,106980.0,106970.0,1.82957457]
[1750128232893,0.01513746,106980.0,106970.0,1.61411372]
[1750128233125,0.01513746,106980.0,106970.0,1.78259372]
[1750128233577,0.01513746,106980.0,106970.0,1.58171372]
[1750128233799,0.01513746,106980.0,106970.0,1.78259372]
[1750128234226,0.01513746,106980.0,106970.0,1.57503424]
[1750128234491,0.01513746,106980.0,106970.0,1.78259372]
[1750128235128,0.01513746,106980.0,106970.0,1.48869372]
[1750128235763,0.01513746,106980.0,106970.0,1.08025424]
[1750128235981,0.04703746,106980.0,106970.0,1.08109424]
[1750128236160,0.04703746,106980.0,106970.0,1.28865372]
[1750128236625,0.01513746,106980.0,106970.0,1.28865372]
[1750128239789,0.01513746,106980.0,106970.0,1.08781372]
[1750128239995,0.01513746,106980.0,106970.0,1.28845372]
[1750128246811,0.04753746,106980.0,106970.0,1.28845372]
[1750128247992,0.04753746,106980.0,106970.0,1.28837372]
[1750128249970,0.04753746,106980.0,106970.0,1.13049372]
[1750128250174,0.04753746,106980.0,106970.0,1.28837372]
[1750128251837,0.04753746,106980.0,106970.0,1.08781372]
[1750128252048,0.04753746,106980.0,106970.0,1.28833372]
[1750128257472,0.04753746,106980.0,106970.0,1.08077424]
[1750128257699,0.04753746,106980.0,106970.0,1.28833372]
[1750128257861,0.04753746,106980.0,106970.0,0.92293424]
[1750128258067,0.04753746,106980.0,106970.0,1.08069424]
[1750128258934,0.04753746,106980.0,106970.0,1.07769424]
[1750128259258,0.04753746,106980.0,106970.0,1.07169424]
[1750128259684,0.04753746,106980.0,106970.0,1.07569424]
[1750128259884,0.04753746,106980.0,106970.0,1.07769424]
[1750128260515,0.04753746,106980.0,106970.0,1.28525372]
[1750128264183,0.04753746,106980.0,106970.0,1.08481372]
[1750128264407,0.04753746,106980.0,106970.0,1.24253372]
[1750128270848,0.04753746,106980.0,106970.0,1.24261445]
[1750128272790,0.01513746,106980.0,106970.0,1.24261445]
[1750128274388,0.04683746,106980.0,106970.0,1.24261445]
[1750128279191,0.04683746,106980.0,106970.0,1.24245445]
[1750128281889,0.01513746,106980.0,106970.0,1.24245445]
[1750128282295,0.01513746,106980.0,106970.0,1.08489445]
[1750128282505,0.01513746,106980.0,106970.0,1.24245445]
[1750128287309,0.01513746,106980.0,106970.0,1.08489445]
[1750128287510,0.01513746,106980.0,106970.0,1.24241445]
[1750128288555,0.01513746,106980.0,106970.0,1.27331445]
[1750128289764,0.01513746,106980.0,106970.0,1.25771445]
[1750128290470,0.01513746,106980.0,106970.0,1.24241445]
[1750128291832,0.01513746,106980.0,106970.0,1.25831445]
[1750128293815,0.01513746,106980.0,106970.0,1.24241445]
[1750128294360,0.01513746,106980.0,106970.0,0.65725424]
[1750128294563,0.04693746,106980.0,106970.0,0.65725424]
[1750128294769,0.04693746,106980.0,106970.0,1.22229445]
[1750128297205,0.01513746,106980.0,106970.0,1.22229445]
[1750128299645,0.01513746,106980.0,106970.0,1.25359445]
[1750128300477,0.01513746,106980.0,106970.0,1.23779445]
[1750128302980,0.01513746,106980.0,106970.0,1.06489445]
[1750128303206,0.01513746,106980.0,106970.0,1.26461445]
[1750128305261,0.01513746,106980.0,106970.0,1.28021445]
[1750128305509,0.01513746,106980.0,106970.0,1.29521445]
[1750128305985,0.01513746,106980.0,106970.0,1.70285466]
[1750128306234,0.01513746,106980.0,106970.0,1.31210903]
[1750128306501,0.01513746,106980.0,106970.0,1.70285466]
[1750128309004,0.01513746,106980.0,106970.0,1.49516381]
[1750128309496,0.01513746,106980.0,106970.0,1.29516381]
[1750128309744,0.01513746,106980.0,106970.0,1.28016381]
[1750128309969,0.01513746,106980.0,106970.0,1.48456381]
[1750128310837,0.01513746,106980.0,106970.0,1.26456381]
[1750128311049,0.01513746,106980.0,106970.0,1.48456381]
[1750128311286,0.01513746,106980.0,106970.0,1.28484381]
[1750128311528,0.04593746,106980.0,106970.0,1.28444381]
[1750128312628,0.04593746,106980.0,106970.0,1.12720381]
[1750128312840,0.04593746,106980.0,106970.0,1.28444381]
[1750128313258,0.04593746,106980.0,106970.0,1.12720381]
[1750128313399,0.04593746,106980.0,106970.0,1.28444381]
[1750128313812,0.04593746,106980.0,106970.0,1.07685424]
[1750128314007,0.04593746,106980.0,106970.0,1.12720381]
[1750128314219,0.04593746,106980.0,106970.0,1.07681424]
[1750128314426,0.04593746,106980.0,106970.0,1.28440381]
[1750128315844,0.04593746,106980.0,106970.0,1.06440381]
[1750128316047,0.04593746,106980.0,106970.0,1.28440381]
[1750128316240,0.05528439,106980.0,106970.0,1.08484381]
[1750128316465,0.0552843,106980.0,106970.0,0.87725424]
[1750128316681,0.0552843,106980.0,106970.0,1.03445424]
[1750128317267,0.07397876,106980.0,106970.0,1.03445424]
[1750128317420,0.06463131,106980.0,106970.0,1.03445424]
[1750128317823,0.06463131,106980.0,106970.0,0.87725424]
[1750128318081,0.06463131,106980.0,106970.0,1.03245424]
[1750128318291,0.0552843,106980.0,106970.0,1.03245424]
[1750128318494,0.04061896,106980.0,106970.0,0.86290644]
[1750128318737,0.25853255,106980.0,106970.0,0.65225433]
[1750128318965,0.45385416,106980.0,106970.0,0.30490653]
[1750128319166,0.45385416,106980.0,106970.0,0.47141459]
[1750128319365,0.06866121,106980.0,106970.0,0.49011028]
[1750128319577,0.07158167,106980.0,106970.0,0.49011028]
[1750128320552,0.08092921,106980.0,106970.0,0.48076248]
[1750128320780,0.24918628,106980.0,106970.0,0.45271838]
[1750128320983,0.24626495,106980.0,106970.0,0.47141477]
[1750128321198,0.04996658,106980.0,106970.0,0.49011063]
[1750128321654,0.06223535,106980.0,106970.0,0.49011063]
[1750128321893,0.05931403,106980.0,106970.0,0.49011063]
[1750128322094,0.06223535,106980.0,106970.0,0.49011063]
[1750128323877,0.04996597,106980.0,106970.0,0.49011063]
[1750128324081,0.05931316,106980.0,106970.0,0.49011063]
[1750128324281,0.04354037,106980.0,106970.0,0.49011063]
[1750128324882,0.06223465,106980.0,106970.0,0.49011063]
[1750128325266,0.06223457,106980.0,106970.0,0.49011063]
[1750128326365,0.0809292,106980.0,106970.0,0.49011063]
[1750128327516,0.07158184,106980.0,106970.0,0.49011063]
[1750128328413,0.0809292,106980.0,106970.0,0.49011063]
[1750128328628,0.08092972,106980.0,106970.0,0.49011063]
[1750128329176,0.07158227,106980.0,106970.0,0.49011063]
[1750128330156,0.04354019,106980.0,106970.0,0.49011063]
[1750128330370,0.06223439,106980.0,106970.0,0.49011063]
[1750128330579,0.07158166,106980.0,106970.0,0.49011063]
[1750128330810,0.0528872,106980.0,106970.0,0.49011063]
[1750128331456,0.04354019,106980.0,106970.0,0.49011063]
[1750128331678,0.05288703,106980.0,106970.0,0.49011063]
[1750128332110,0.03419344,106980.0,106970.0,0.49011063]
[1750128332324,0.00047212,106980.0,106970.0,1.0377002]
[1750128332533,0.00047212,106980.0,106970.0,1.0903002]
[1750128334814,0.00047212,106980.0,106970.0,1.0740002]
[1750128335549,0.00047212,106980.0,106970.0,1.0577002]
[1750128338108,0.00047212,106980.0,106970.0,1.2903002]
[1750128338322,0.00010523,106980.0,106970.0,1.2903002]
[1750128339162,0.00010523,106980.0,106970.0,1.2883002]
[1750128339385,0.00010523,106980.0,106970.0,1.2873002]
[1750128339512,0.00010523,106980.0,106970.0,1.2963002]
[1750128339915,0.00010523,106980.0,106970.0,0.91155063]
[1750128340127,0.00010523,106980.0,106970.0,1.05595063]
[1750128340587,0.00010523,106980.0,106970.0,1.2635402]
[1750128340795,0.03160523,106980.0,106970.0,1.05595063]
[1750128340943,0.03160523,106980.0,106970.0,1.05295063]
[1750128341198,0.03160523,106980.0,106970.0,0.89795063]
[1750128341411,0.03160523,106980.0,106970.0,1.04895063]
[1750128341622,0.01630523,106980.0,106970.0,1.05195063]
[1750128342654,0.01630523,106980.0,106970.0,0.89495063]
[1750128342873,0.01630523,106980.0,106970.0,1.05191063]
[1750128343968,0.01630523,106980.0,106970.0,1.03191063]
[1750128344199,0.01630523,106980.0,106970.0,1.05191063]
[1750128344894,0.01630523,106980.0,106970.0,0.89495063]
[1750128345130,0.04075207,106980.0,106970.0,0.67495063]
[1750128345335,0.04075207,106980.0,106970.0,0.83191063]
[1750128345560,0.05009908,106980.0,106970.0,0.83191063]
[1750128345771,0.05944627,106980.0,106970.0,0.67495063]
[1750128345980,0.050099,106980.0,106970.0,0.83191063]
[1750128346185,0.0594461,106980.0,106970.0,0.67495063]
[1750128346396,0.07171469,106980.0,106970.0,0.83187063]
[1750128346599,0.07171469,106980.0,106970.0,0.82987063]
[1750128346817,0.06236733,106980.0,106970.0,0.82987063]
[1750128347437,0.05302023,106980.0,106970.0,0.82687063]
[1750128347668,0.06236724,106980.0,106970.0,0.82787063]
[1750128348294,0.03432646,106980.0,106970.0,0.82787063]
[1750128348510,0.03140523,106980.0,106970.0,0.82787063]
[1750128349363,0.03140523,106980.0,106970.0,0.67095063]
[1750128349576,0.03140523,106980.0,106970.0,0.82787063]
[1750128349577,0.00010523,106980.0,106970.0,0.82787063]
[1750128349790,0.00010523,106980.0,106970.0,1.0354602]
[1750128353079,0.00010523,106980.0,106970.0,0.82787063]
[1750128355333,0.03160523,106980.0,106970.0,0.82787063]
[1750128355554,0.05029899,106980.0,106970.0,0.82783063]
[1750128355793,0.27658285,106980.0,106970.0,0.64290644]
[1750128356027,0.06899319,106980.0,106970.0,0.80909424]
[1750128356331,0.27658276,106980.0,106970.0,0.80909424]
[1750128356761,0.06899319,106980.0,106970.0,0.80909424]
[1750128356972,0.08126172,106980.0,106970.0,0.80909424]
[1750128357442,0.08126251,106980.0,106970.0,0.65225424]
[1750128357675,0.08126251,106980.0,106970.0,0.80913424]
[1750128358121,0.47580291,106980.0,106970.0,0.30290662]
[1750128358372,0.4635349,106980.0,106970.0,0.47844265]
[1750128358600,0.4635349,106980.0,106970.0,0.31225468]
[1750128358824,0.4541878,106980.0,106970.0,0.46909468]
[1750128361493,0.4541878,106980.0,106970.0,0.31225468]
[1750128361700,0.4541878,106980.0,106970.0,0.47844265]
[1750128362861,0.44484053,106980.0,106970.0,0.44105006]
[1750128363073,0.44484053,106980.0,106970.0,0.4503983]
[1750128363276,0.26723671,106980.0,106970.0,0.46909416]
[1750128363492,0.26723671,106980.0,106970.0,0.47844196]
[1750128363703,0.27658425,106980.0,106970.0,0.47844196]
[1750128363981,0.06899468,106980.0,106970.0,0.47844196]
[1750128364204,0.25886688,106980.0,106970.0,0.46909416]
[1750128364421,0.25594551,106980.0,106970.0,0.46909416]
[1750128365067,0.45418798,106980.0,106970.0,0.35411654]
[1750128365267,0.45418798,106980.0,106970.0,0.36346469]
[1750128366180,0.45418798,106980.0,106970.0,0.37281275]
[1750128366410,0.45418798,106980.0,106970.0,0.38216072]
[1750128366632,0.45418798,106980.0,106970.0,0.39150861]
[1750128367094,0.45418798,106980.0,106970.0,0.38216072]
[1750128367324,0.45418798,106980.0,106970.0,0.37281275]
[1750128367763,0.43549317,106980.0,106970.0,0.36346469]
[1750128368846,0.42614563,106980.0,106970.0,0.35411654]
[1750128369099,0.42614563,106980.0,106970.0,0.15776]
[1750128369330,0.42614563,106980.0,106970.0,0.001]
[1750128369547,0.42614563,106980.0,106970.0,0.15776]
[1750128371503,0.6337352,106980.0,106970.0,0.001]
[1750128371713,0.6337352,106980.0,106970.0,0.15772]
[1750128372202,0.6337352,106980.0,106970.0,0.001]
[1750128373135,0.64508279,106980.0,106970.0,0.001]
[1750128373589,0.22713498,106960.0,106950.0,0.07422872]
[1750128373800,0.43472455,106960.0,106950.0,0.24029888]
[1750128374914,0.43472455,106960.0,106950.0,0.23094872]
[1750128375129,0.43472455,106960.0,106950.0,0.07422872]
[1750128375354,0.22755334,106950.0,106940.0,0.54572221]
[1750128375597,0.22755334,106950.0,106940.0,0.79864397]
[1750128375844,0.2369028,106950.0,106940.0,0.79864414]
[1750128376063,0.43514291,106950.0,106940.0,0.16603103]
[1750128376284,0.43514291,106950.0,106940.0,0.38110419]
[1750128377240,0.43514291,106950.0,106940.0,0.38210419]
[1750128377497,0.43514291,106950.0,106940.0,0.37275359]
[1750128377950,0.43514291,106950.0,106940.0,0.38210427]
[1750128378675,0.43514291,106950.0,106940.0,0.22542427]
[1750128378884,0.43514291,106950.0,106940.0,0.38210427]
[1750128379745,0.43514291,106950.0,106940.0,0.37275359]
[1750128379961,0.43514291,106950.0,106940.0,0.01035103]
[1750128380204,0.43514291,106950.0,106940.0,0.15768]
[1750128381113,0.18702075,106940.0,106930.0,0.19637517]
[1750128381341,0.42843266,106940.0,106930.0,0.44929693]
[1750128381569,0.42551032,106940.0,106930.0,0.45864866]
[1750128382061,0.42551032,106940.0,106920.0,0.31511215]
[1750128382303,0.42551032,106940.0,106930.0,0.15664]
[1750128382541,0.42598192,106940.0,106930.0,0.16699182]
[1750128384237,0.42598192,106940.0,106930.0,0.15764]
[1750128384888,0.42598192,106940.0,106930.0,0.36338197]
[1750128385780,0.42598192,106940.0,106930.0,0.15764]
[1750128386222,0.42598192,106940.0,106930.0,0.001]
[1750128386456,0.21839235,106940.0,106930.0,0.15764]
[1750128386691,0.21839235,106940.0,106930.0,0.001]
[1750128386692,0.43512781,106940.0,106930.0,0.001]
[1750128387631,0.22849015,106930.0,106920.0,0.26599278]
[1750128387853,0.43607972,106930.0,106920.0,0.26599278]
[1750128388104,0.43607972,106930.0,106920.0,0.2566]
[1750128389181,0.43607972,106930.0,106920.0,0.101]
[1750128390727,0.47795972,106930.0,106920.0,0.101]
[1750128390939,0.68554929,106930.0,106920.0,0.101]
[1750128391145,0.7963319,106930.0,106920.0,0.101]
[1750128391360,0.8003319,106930.0,106920.0,0.1]
[1750128391589,0.8053319,106930.0,106920.0,0.1]
[1750128391804,0.8013319,106930.0,106920.0,0.1]
[1750128392016,0.7963319,106930.0,106920.0,0.1]
[1750128392228,0.8083319,106930.0,106920.0,0.1]
[1750128393747,0.9649319,106930.0,106920.0,0.1]
[1750128394698,0.54975276,106930.0,106920.0,0.1]
[1750128394938,1.4582319,106930.0,106920.0,0.1]
[1750128396857,1.4863249,106930.0,106920.0,0.1]
[1750128397930,1.8263249,106930.0,106920.0,0.1]
[1750128398412,1.84848352,106930.0,106920.0,0.1]
[1750128398849,1.45129274,106930.0,106920.0,0.1]
[1750128399061,0.41340801,106890.0,106880.0,0.22756206]
[1750128399454,0.44560801,106890.0,106880.0,0.22756206]
[1750128400759,0.43007932,106890.0,106880.0,0.22856206]
[1750128401224,0.43007932,106890.0,106880.0,0.15433334]
[1750128401443,0.43007932,106890.0,106880.0,0.15533334]
[1750128403293,0.44527932,106890.0,106880.0,0.15533334]
[1750128403513,0.65286889,106890.0,106880.0,0.15533334]
[1750128404390,0.65286889,106890.0,106880.0,0.15333334]
[1750128404608,0.65586889,106890.0,106880.0,0.15333334]
[1750128404818,0.65486889,106890.0,106880.0,0.15333334]
[1750128405263,0.65786889,106890.0,106880.0,0.15333334]
[1750128405685,0.60679932,106890.0,106880.0,0.15333334]
[1750128406149,0.45027932,106890.0,106880.0,0.15333334]
[1750128406360,0.64867932,106890.0,106880.0,0.15333334]
[1750128407096,0.85626889,106890.0,106880.0,0.15333334]
[1750128407309,0.44108975,106890.0,106880.0,0.15333334]
[1750128407519,0.64867932,106890.0,106880.0,0.15333334]
[1750128408981,0.85626889,106890.0,106880.0,0.15333334]
[1750128412227,0.69974889,106890.0,106880.0,0.15333334]
[1750128412950,0.46075932,106890.0,106880.0,0.16333334]
[1750128415086,0.41887932,106890.0,106880.0,0.16333334]
[1750128415306,0.65806889,106890.0,106880.0,0.16333334]
[1750128417976,0.68026393,106890.0,106880.0,0.16333334]
[1750128420426,1.22719576,106890.0,106880.0,0.16333334]
[1750128420647,1.22719576,106890.0,106860.0,0.06666667]
[1750128420648,0.2516978,106870.0,106860.0,0.06666667]
[1750128420871,1.01774437,106870.0,106860.0,0.06666667]
[1750128421087,1.02699786,106870.0,106860.0,0.06666667]
[1750128421308,0.20593403,106830.0,106820.0,0.0316]
[1750128421527,0.21533493,106810.0,106800.0,0.28645792]
[1750128421780,0.21533493,106810.0,106800.0,0.55782591]
[1750128422048,0.22469734,106810.0,106800.0,0.58348876]
[1750128422327,0.03744896,106810.0,106800.0,0.59285152]
[1750128422539,0.04037477,106810.0,106800.0,0.59285152]
[1750128422756,0.22762315,106810.0,106800.0,0.42009271]
[1750128422980,0.40420036,106810.0,106800.0,0.13150865]
[1750128423209,0.39483795,106810.0,106800.0,0.00336689]
[1750128423454,0.00936206,106810.0,106800.0,0.40702162]
[1750128423666,0.01872404,106810.0,106800.0,0.40702162]
[1750128423879,0.03744861,106810.0,106800.0,0.4070217]
[1750128424090,0.02808628,106810.0,106800.0,0.41638438]
[1750128424301,0.04037467,106810.0,106800.0,0.40702179]
[1750128424947,0.03744869,106810.0,106800.0,0.41638455]
[1750128425165,0.22469707,106810.0,106800.0,0.39765894]
[1750128425432,0.22469707,106810.0,106800.0,0.40702179]
[1750128425640,0.03744869,106810.0,106800.0,0.40702179]
[1750128425860,0.21826107,106810.0,106800.0,0.39765894]
[1750128426086,0.20597303,106810.0,106800.0,0.39765894]
[1750128426315,0.20597303,106810.0,106800.0,0.39765912]
[1750128426545,0.20597303,106810.0,106800.0,0.41638509]
[1750128427227,0.20597303,106810.0,106800.0,0.40702215]
[1750128427459,0.19661079,106810.0,106800.0,0.39765912]
[1750128427680,0.19661079,106810.0,106800.0,0.40702215]
[1750128427897,0.19661079,106810.0,106800.0,0.41638509]
[1750128428122,0.19661079,106810.0,106800.0,0.40702215]
[1750128428589,0.19661079,106810.0,106800.0,0.41638509]
[1750128429735,0.19661079,106810.0,106800.0,0.40702215]
[1750128429958,0.19661079,106810.0,106800.0,0.41638509]
[1750128431587,0.19661079,106810.0,106800.0,0.42574794]
[1750128431823,0.19661079,106810.0,106800.0,0.41638509]
[1750128432049,0.19661079,106810.0,106800.0,0.40702215]
[1750128433178,0.19661079,106810.0,106800.0,0.388296]
[1750128433850,0.40420036,106810.0,106800.0,0.15976689]
[1750128434098,0.79957618,106810.0,106800.0,0.15976689]
[1750128434318,0.41249934,106810.0,106800.0,0.15976689]
[1750128434543,0.61115905,106810.0,106800.0,0.15976689]
[1750128434775,0.58906942,106810.0,106800.0,0.15976689]
[1750128435031,0.58906942,106810.0,106800.0,0.15876689]
[1750128435276,1.14177027,106810.0,106800.0,0.00036689]
[1750128435498,1.17785128,106810.0,106800.0,0.00136689]
[1750128435738,0.60683809,106810.0,106800.0,0.00136689]
[1750128435984,0.85618766,106810.0,106800.0,0.00036689]
[1750128436204,0.87728766,106810.0,106800.0,0.00036689]
[1750128436422,0.89328766,106810.0,106800.0,0.00036689]
[1750128436629,0.88728766,106810.0,106800.0,0.00036689]
[1750128437108,1.09821949,106810.0,106800.0,0.00036689]
[1750128437531,1.00207027,106810.0,106800.0,0.00036689]
[1750128438208,1.14337027,106810.0,106800.0,0.00036689]
[1750128438865,1.15917027,106810.0,106800.0,0.00036689]
[1750128439326,1.65247027,106810.0,106800.0,0.00036689]
[1750128439566,1.63667027,106810.0,106800.0,0.00036689]
[1750128439991,1.62067027,106810.0,106800.0,0.00036689]
[1750128441320,1.63687027,106810.0,106800.0,0.00036689]
[1750128442395,1.65297027,106810.0,106800.0,0.00036689]
[1750128443466,1.65297027,106810.0,106800.0,0.01775621]
[1750128443683,1.65293027,106810.0,106800.0,0.01775621]
[1750128443895,1.4453407,106810.0,106800.0,0.01775621]
[1750128444099,1.65293027,106810.0,106800.0,0.01775621]
[1750128444745,1.65293027,106810.0,106800.0,0.01777318]
[1750128445837,1.67506789,106810.0,106800.0,0.01777318]
[1750128446049,1.67506789,106810.0,106800.0,0.01777606]
[1750128446272,1.65293027,106810.0,106800.0,0.01777606]
[1750128446696,1.67508378,106810.0,106800.0,0.01777606]
[1750128447389,1.1423916,106810.0,106800.0,0.01777606]
[1750128447590,1.54810117,106810.0,106800.0,0.01777606]
[1750128448504,1.57874202,106810.0,106800.0,0.01777606]
[1750128448909,1.60639322,106810.0,106800.0,0.01777606]
[1750128449123,1.57874202,106810.0,106800.0,0.01777606]
[1750128449569,1.60639322,106810.0,106800.0,0.01777606]
[1750128451409,1.60639322,106810.0,106800.0,0.01787237]
[1750128452559,1.64340716,106810.0,106800.0,0.01787237]
[1750128452769,1.60639322,106810.0,106800.0,0.01787237]
[1750128453113,1.37607322,106810.0,106800.0,0.00036689]
[1750128453337,1.57399322,106810.0,106800.0,0.00036689]
[1750128454345,0.61733201,106810.0,106800.0,0.03196689]
[1750128454544,0.24148721,106810.0,106800.0,0.25955646]
[1750128454756,0.20061036,106810.0,106800.0,0.06133018]
[1750128454922,0.20061036,106810.0,106800.0,0.0800565]
[1750128455401,0.20361036,106810.0,106800.0,0.27668526]
[1750128455526,0.02572422,106810.0,106800.0,0.28604802]
[1750128455731,0.03508584,106810.0,106800.0,0.49363698]
[1750128456356,0.02572369,106810.0,106800.0,0.49363698]
[1750128456555,0.01636171,106810.0,106800.0,0.58987874]
[1750128456765,0.007,106810.0,106800.0,0.58987874]
[1750128457173,0.0257236,106810.0,106800.0,0.58987874]
[1750128457373,0.01636171,106810.0,106800.0,0.58987874]
[1750128458142,0.01236171,106810.0,106800.0,0.59944156]
[1750128458353,0.01236171,106810.0,106800.0,0.58987874]
[1750128458581,0.0187236,106810.0,106800.0,0.58987874]
[1750128458808,0.03744764,106810.0,106800.0,0.35420088]
[1750128459022,0.03744764,106810.0,106800.0,0.5092065]
[1750128459023,0.04037396,106810.0,106800.0,0.5092065]
[1750128459264,0.04973629,106810.0,106800.0,0.49984382]
[1750128459475,0.2182608,106810.0,106800.0,0.49984382]
[1750128459686,0.21533501,106810.0,106800.0,0.49984382]
[1750128460110,0.02808663,106810.0,106800.0,0.36228926]
[1750128460323,0.03101248,106810.0,106800.0,0.51852926]
[1750128461470,0.02165015,106810.0,106800.0,0.51852926]
[1750128461707,0.20947266,106830.0,106810.0,0.20596642]
[1750128461949,0.04036988,106820.0,106810.0,0.34306998]
[1750128462381,0.04036988,106820.0,106810.0,0.39366642]
[1750128462382,0.22760073,106820.0,106810.0,0.39366642]
[1750128462594,0.22760073,106820.0,106810.0,0.39366651]
[1750128462595,0.22467594,106820.0,106810.0,0.39366651]
[1750128462814,0.22467594,106820.0,106810.0,0.40302857]
[1750128463256,0.22567594,106820.0,106810.0,0.41239055]
[1750128463553,0.01972176,106820.0,106810.0,0.51799411]
[1750128463735,0.03400852,106820.0,106810.0,0.36179411]
[1750128463983,0.00592557,106820.0,106810.0,0.72558368]
[1750128464186,0.003,106820.0,106810.0,0.72558368]
[1750128464618,0.01236075,106820.0,106810.0,0.72558368]
[1750128464861,0.002,106820.0,106810.0,0.72558368]
[1750128465090,0.03744099,106830.0,106820.0,0.24651441]
[1750128465351,0.04680156,106830.0,106820.0,0.23715349]
[1750128465613,0.0374416,106830.0,106820.0,0.24651459]
[1750128465835,0.0374416,106830.0,106820.0,0.2558756]
[1750128465992,0.0374416,106830.0,106820.0,0.26523652]
[1750128466209,0.04680226,106830.0,106820.0,0.26523652]
[1750128466431,0.04880226,106830.0,106820.0,0.26523652]
[1750128466794,0.0394416,106830.0,106820.0,0.26523652]
[1750128467943,0.22665492,106830.0,106820.0,0.24651459]
[1750128468162,0.20793438,106830.0,106820.0,0.3527523]
[1750128468391,0.19957389,106830.0,106820.0,0.3527523]
[1750128468617,0.19957389,106830.0,106820.0,0.36211366]
[1750128468895,0.19957389,106830.0,106820.0,0.37147493]
[1750128469090,0.19957389,106830.0,106820.0,0.38083612]
[1750128469271,0.19957389,106830.0,106820.0,0.39673612]
[1750128472146,0.19957389,106830.0,106820.0,0.39669612]
[1750128475040,0.19957389,106830.0,106820.0,0.24057612]
[1750128475245,0.19957389,106830.0,106820.0,0.39669612]
[1750128476885,0.19957389,106830.0,106820.0,0.39665612]
[1750128477491,0.19957389,106830.0,106820.0,0.23121493]
[1750128477717,0.39780289,106830.0,106820.0,0.18544154]
[1750128477829,0.39780289,106830.0,106820.0,0.17608]
[1750128478040,0.39780289,106830.0,106820.0,0.18544154]
[1750128479645,0.39780289,106830.0,106820.0,0.02936154]
[1750128479841,0.39780289,106830.0,106820.0,0.18544154]
[1750128480626,0.39780289,106830.0,106820.0,0.17608]
[1750128481040,0.41300289,106830.0,106820.0,0.17608]
[1750128481233,0.20541332,106830.0,106820.0,0.22595384]
[1750128481458,0.39780289,106830.0,106820.0,0.39139511]
[1750128481670,0.19021332,106830.0,106820.0,0.4007563]
[1750128481875,0.21531467,106820.0,106810.0,0.35265071]
[1750128482085,0.21531467,106820.0,106810.0,0.36201277]
[1750128482290,0.21531467,106820.0,106810.0,0.20597277]
[1750128482495,0.21531467,106820.0,106810.0,0.36201277]
[1750128483554,0.20595366,106820.0,106810.0,0.35265071]
[1750128483757,0.19659239,106820.0,106810.0,0.35265071]
[1750128483966,0.19659239,106820.0,106810.0,0.3713751]
[1750128484378,0.19659239,106820.0,106810.0,0.38073716]
[1750128484581,0.19659239,106820.0,106810.0,0.39009914]
[1750128484787,0.19659239,106820.0,106810.0,0.3900987]
[1750128485005,0.19657398,106830.0,106820.0,0.20595366]
[1750128485419,0.20593447,106830.0,106820.0,0.21531493]
[1750128485833,0.02808137,106830.0,106820.0,0.22467603]
[1750128486037,0.21529469,106830.0,106820.0,0.22467603]
[1750128486241,0.21529469,106830.0,106820.0,0.21531493]
[1750128486479,0.19657398,106830.0,106820.0,0.21531493]
[1750128486689,0.19857398,106830.0,106820.0,0.22467603]
[1750128487714,0.19957398,106830.0,106820.0,0.21531493]
[1750128488334,0.19957398,106830.0,106820.0,0.22467612]
[1750128488965,0.00936101,106820.0,106810.0,0.37811207]
[1750128489177,0.00936101,106820.0,106810.0,0.49055383]
[1750128489178,0.0029255,106820.0,106810.0,0.49055383]
[1750128489391,0.00936092,106820.0,106810.0,0.6981434]
[1750128490057,0.01872193,106820.0,106810.0,0.6981434]
[1750128490243,0.01872176,106820.0,106810.0,0.6981434]
[1750128490449,0.02808154,106830.0,106820.0,0.25141467]
[1750128490659,0.21822032,106830.0,106820.0,0.24205366]
[1750128490865,0.21529486,106830.0,106820.0,0.22595366]
[1750128491068,0.01872088,106830.0,106820.0,0.24467577]
[1750128491271,0.02808154,106830.0,106820.0,0.24467577]
[1750128491475,0.02808154,106830.0,106820.0,0.23531485]
[1750128491684,0.02908154,106830.0,106820.0,0.23531485]
[1750128491880,0.02908154,106830.0,106820.0,0.24467595]
[1750128492099,0.03108154,106830.0,106820.0,0.24467595]